[Event "34th GER-ch Seniors-50 2022"]
[Site "Magdeburg"]
[Date "2022.08.14"]
[Round "3.8"]
[White "De Roda Husman, Juan"]
[Black "Erlach, Olaf"]
[Result "1-0"]
[ECO "C43"]
[WhiteElo "2266"]
[BlackElo "2016"]
[Annotator "TA"]
[PlyCount "57"]
[EventDate "2022.08.12"]
[EventType "swiss"]
[EventCountry "GER"]
[SourceTitle "playchess.com"]
[Source "ChessBase"]
[SourceQuality "1"]
[TimeControl "40/5400+30:1800+30"]

{[%evp 17,57,17,16,22,20,17,13,13,18,2,26,26,34,27,27,25,30,12,23,10,48,38,73,69,131,156,283,175,183,183,268,255,327,330,375,375,357,365,358,327,340,334]} 1. e4 {[%emt 0:00:03]} e5 {[%emt 0:00:07]} 2. Nf3 {[%emt 0:00:16]} Nf6 {[%emt 0:00:06]} 3. d4 {[%emt 0:00:22]} Nxe4 {[%emt 0:00:23]} 4. Bd3 {[%emt 0:00:14]} d5 {[%emt 0:00:14]} 5. Nxe5 {[%emt 0:00:28]} Nd7 {[%emt 0:00:33]} 6. Nxd7 {[%emt 0:00:50]} Bxd7 {[%emt 0:00:15]} 7. O-O {[%emt 0:01:14]} Bd6 {[%emt 0:00:37]} 8. Nc3 $1 {[%emt 0:00:53][%mdl 4] is more profitable than 8.c4 at the moment.} Nxc3 {[%emt 0:01:52]} 9. bxc3 {[%emt 0:00:10]} O-O {[%emt 0:00:56]} 10. Qh5 {[%emt 0:01:29][%csl Gd3,LRd5,LRh7][%cal Rh5h7] [#] Prevents Qh4. C43: Petroff Defence: 3 d4.} f5 {[%emt 0:02:36]} 11. Bg5 {[%emt 0:03:28]} Qe8 {[%emt 0:02:48]} 12. Qf3 {[%emt 0:10:57] The position is equal.} Qf7 {[%emt 0:02:23] Hoping for ...f4.} 13. Bf4 $1 {[%emt 0:02:37]} Bxf4 {[%emt 0:02:05]} 14. Qxf4 {[%emt 0:00:09] [#]} Bc6 $146 {[%emt 0:02:12]} ({Predecessor:} 14... Rac8 15. Rab1 Bc6 16. Rfe1 b6 17. Re5 Bd7 18. Ba6 Rce8 19. h3 h6 20. Bd3 Bc8 {1-0 (70) Liyanage,R (2282)-Coto Mederos,M (2348) Chess.com INT 2021}) 15. Rfe1 {[%emt 0:01:11]} g6 {[%emt 0:01:45]} 16. Re5 {[%emt 0:05:54]} Rae8 {[%emt 0:01:41]} 17. Rae1 {[%emt 0:02:35]} Rxe5 {[%emt 0:03:55]} 18. dxe5 {[%emt 0:01:02]} Qe7 {[%emt 0:01:37]} 19. h4 {[%emt 0:06:30][%cal Bh2h4,Bh4h5][%mdl 32]} b5 {[%emt 0:04:22]} 20. h5 {[%emt 0:13:23]} g5 {[%emt 0:01:42]} (20... a6 $14) 21. Qd4 $16 {[%emt 0:01:00] White is more active.} h6 {[%emt 0:05:46]} (21... a6 $16 22. e6 f4) 22. e6 {[%emt 0:03:21]} ({Not} 22. Qxa7 Ra8 23. Qe3 f4 $16) 22... Rf6 {[%emt 0:05:36]} 23. Qe5 {[%emt 0:02:09]} Be8 {[%emt 0:06:33]} (23... f4 $142 24. Bg6 a5) 24. Qxd5 $18 {[%emt 0:03:27]} ({Don't take} 24. Bxf5 c6 25. g4 a5 $18) 24... c6 {[%emt 0:00:59]} 25. Qe5 {[%emt 0:01:31]} f4 {[%emt 0:02:43]} 26. Bg6 {[%emt 0:02:15]} Bxg6 {[%emt 0:02:36]} 27. hxg6 {[%emt 0:00:08]} Rxg6 {[%emt 0:09:31]} 28. Qe4 {[%emt 0:00:46][%csl LRc6,LRg6]} Rf6 {[%emt 0:00:34]} 29. Qxc6 {[%emt 0:01:08] Weighted Error Value: White=0.09 (flawless) /Black=0.28 (precise)} 1-0

[Event "34th GER-ch Seniors-50 2022"]
[Site "Magdeburg"]
[Date "2022.08.15"]
[Round "4.1"]
[White "Wacker, Peter"]
[Black "Pirrot, Dieter"]
[Result "1/2-1/2"]
[ECO "B01"]
[WhiteElo "2263"]
[BlackElo "2328"]
[Annotator "TA"]
[PlyCount "47"]
[EventDate "2022.08.12"]
[EventType "swiss"]
[EventCountry "GER"]
[SourceTitle "playchess.com"]
[Source "ChessBase"]
[SourceQuality "1"]
[TimeControl "40/5400+30:1800+30"]

{[%evp 10,47,42,32,34,29,145,131,113,71,72,72,74,64,65,66,101,68,72,72,79,62,87,56,68,54,55,51,62,40,44,45,45,20,21,0,6,-11,-13,-23]} 1. e4 {[%emt 0:00:03]} d5 {[%emt 0:00:08]} 2. exd5 {[%emt 0:00:08]} Qxd5 {[%emt 0:00:10]} 3. Nc3 {[%emt 0:00:07]} Qa5 {[%emt 0:00:17]} 4. d4 {[%emt 0:00:07]} Nf6 {[%emt 0:00:07]} 5. Nf3 {[%emt 0:06:41]} Bf5 {[%emt 0:00:24]} 6. Bd2 {[%emt 0:06:45]} e6 {[%emt 0:00:35] now supersedes 6...c6. B01: Scandinavian Defence.} 7. Ne5 {[%emt 0:09:15] g4 is the strong threat.} Bb4 {[%emt 0:04:59] [#]} (7... Qb6 $11) 8. Nc4 $1 $16 {[%emt 0:05:10]} Qa6 {[%emt 0:00:48] White is clearly better.} 9. Ne3 {[%emt 0:27:50]} Qb6 {[%emt 0:01:04]} 10. Nxf5 {[%emt 0:00:39]} exf5 {[%emt 0:00:09] [#]} 11. Qe2+ $146 {[%emt 0:00:15]} ({Predecessor:} 11. Qf3 Qe6+ 12. Be2 c6 13. O-O O-O 14. Bd3 g6 15. Rfe1 Qd7 16. Bg5 Qxd4 17. Rad1 {1-0 (43) Pedersen,B (1860)-Bratteteig,T (1671) Helsingor 2011}) 11... Qe6 {[%emt 0:01:10]} 12. O-O-O {[%emt 0:02:03] [#] aiming for Qb5+.} Bxc3 {[%emt 0:07:07]} 13. Qxe6+ {[%emt 0:03:11]} fxe6 {[%emt 0:00:10]} 14. Bxc3 {[%emt 0:00:05]} c6 {[%emt 0:01:30]} 15. Bc4 {[%emt 0:04:33] Hoping for Rhe1.} Nd5 {[%emt 0:00:27]} 16. Rde1 {[%emt 0:03:07]} Kf7 {[%emt 0:00:51]} 17. Bd2 {[%emt 0:02:18]} b5 {[%emt 0:04:33]} 18. Be2 {[%emt 0:05:26]} a5 {[%emt 0:02:43]} 19. g4 {[%emt 0:00:50]} Nd7 {[%emt 0:01:37]} 20. Bf3 {[%emt 0:03:37]} a4 {[%emt 0:04:01]} 21. gxf5 {[%emt 0:03:36]} exf5 {[%emt 0:00:12] The position is equal.} 22. Bxd5+ {[%emt 0:00:13]} cxd5 {[%emt 0:00:10]} 23. Bf4 {[%emt 0:00:40]} Rhe8 {[%emt 0:08:06]} 24. f3 {[%emt 0:00:06] Inhibits Re4.  Weighted Error Value: White=0.12 (very precise) /Black=0.21 (precise)} 1/2-1/2

[Event "34th GER-ch Seniors-50 2022"]
[Site "Magdeburg"]
[Date "2022.08.15"]
[Round "4.2"]
[White "Zude, Arno"]
[Black "Krause, Ullrich"]
[Result "1/2-1/2"]
[ECO "C18"]
[WhiteElo "2371"]
[BlackElo "2190"]
[Annotator "TA"]
[PlyCount "81"]
[EventDate "2022.08.12"]
[EventType "swiss"]
[EventCountry "GER"]
[SourceTitle "playchess.com"]
[Source "ChessBase"]
[SourceQuality "1"]
[TimeControl "40/5400+30:1800+30"]

{[%evp 15,81,15,39,29,47,45,60,1,61,52,49,54,54,46,56,6,72,14,60,66,83,60,122,112,227,221,217,154,143,119,151,151,201,0,74,75,194,135,127,163,245,238,220,104,88,84,85,84,99,108,122,123,108,85,85,85,85,47,79,64,39,0,0,0,0,0,0,0]} 1. e4 {[%emt 0:00:04]} e6 {[%emt 0:00:09]} 2. d4 {[%emt 0:00:13]} d5 {[%emt 0:00:05]} 3. Nc3 {[%emt 0:00:07]} Bb4 {[%emt 0:00:09]} 4. e5 {[%emt 0:00:23]} c5 {[%emt 0:00:20]} 5. a3 {[%emt 0:00:07]} Bxc3+ {[%emt 0:00:07]} 6. bxc3 {[%emt 0:00:06]} Qa5 {[%emt 0:00:15]} 7. Bd2 {[%emt 0:01:42]} Qa4 {[%emt 0:00:08]} 8. Qg4 {[%emt 0:01:56]} g6 {[%emt 0:00:21]} 9. Nf3 {[%emt 0:02:27][%cal Oc3c4] C18: French: 3 Nc3 Bb4: Main line: 7 h4 and 7 Qg4.} Nc6 {[%emt 0:03:48] 9...c4 is vanishing.} 10. Be2 {[%emt 0:05:18]} Bd7 {[%emt 0:01:31]} 11. Qh4 {[%emt 0:04:06]} (11. O-O $14) 11... c4 {[%emt 0:12:14]} (11... Qxc2 $11 12. O-O (12. dxc5 h6 $11) 12... cxd4 13. cxd4 Qe4) 12. Ra2 {[%emt 0:01:54]} h6 {[%emt 0:03:11]} 13. O-O {[%emt 0:02:17]} Nce7 {[%emt 0:05:36]} 14. Bg5 {[%emt 0:02:36]} Qa5 {[%emt 0:08:41]} 15. a4 {[%emt 0:22:36]} (15. Rfa1 $14) 15... Bc6 {[%emt 0:04:18]} (15... Bxa4 $11 {remains equal.} 16. g3 b5) 16. Rb1 {[%emt 0:05:29]} (16. Bf6 Nf5 17. Qf4 Nxf6 18. exf6 g5 $17) (16. Rfa1 $16) 16... Qc7 {[%emt 0:10:13]} (16... Nc8 $1 $11) 17. a5 $36 {[%emt 0:01:18][%mdl 2048] Black is under pressure.} O-O-O {[%emt 0:00:54]} 18. Bc1 {[%emt 0:05:10] [#]} Rf8 $146 {[%emt 0:16:48]} (18... Nf5 $14 19. Qh3 h5) ({Predecessor:} 18... Kb8 19. Ba3 Ka8 20. Bc5 g5 21. Qh5 Ng6 22. g3 Qd7 23. Rab2 N8e7 24. Nd2 Nf5 {½-½ (47) Sorcinelli,A (2249)-Mroczek,J (2259) LSS email 2016}) 19. Ba3 $16 {[%emt 0:03:52]} f5 {[%emt 0:08:14]} (19... g5 $16 20. Qg4 f5) 20. exf6 $18 {[%emt 0:00:47]} Nxf6 {[%emt 0:01:00]} 21. Ne5 {[%emt 0:01:00]} Nf5 {[%emt 0:03:31]} 22. Qh3 {[%emt 0:00:55] White is more active.} Rfg8 {[%emt 0:00:56]} 23. Rab2 $1 {[%emt 0:12:32]} Rg7 {[%emt 0:01:51]} (23... Ne4 $16) 24. Bg4 $2 {[%emt 0:08:20]} (24. a6 $6 b6 $16) ({White should try} 24. Bc5 $1 $18) 24... Kb8 {[%emt 0:08:14]} (24... Ne4 $1 $11) 25. Bxf5 $16 {[%emt 0:03:50]} gxf5 {[%emt 0:00:23]} (25... exf5 $16 {might work better.} 26. Bc5 Ne4) 26. Qe3 {[%emt 0:00:28]} (26. Nxc6+ $18 Qxc6 27. Qe3) 26... Ka8 {[%emt 0:01:55]} 27. Nxc6 {[%emt 0:03:36]} Qxc6 {[%emt 0:00:42]} (27... Rhg8 $142 28. Rxb7 (28. Ne5 Rxg2+ 29. Kf1 Qxa5 $17) 28... Rxg2+ 29. Kf1 Qxc6) 28. Qe5 $18 {[%emt 0:01:01]} Rf7 {[%emt 0:00:50] [#]} 29. f3 {[%emt 0:00:57]} (29. Rb6 $1 $18 {[%cal Rb6c6][%mdl 512] is the precise move to win.} axb6 30. axb6) 29... Rg8 $16 {[%emt 0:00:35]} 30. Re1 {[%emt 0:03:54]} Re8 {[%emt 0:00:18]} 31. Qd6 {[%emt 0:01:13]} Qxd6 {[%emt 0:01:27]} 32. Bxd6 {[%emt 0:00:02]} Nd7 {[%emt 0:02:21]} 33. Rb5 {[%emt 0:03:24]} Rg7 {[%emt 0:03:51]} 34. g3 {[%emt 0:00:46] And now Rxd5 would win.} ({Worse is} 34. Rxd5 Reg8 35. Rb5 (35. Rxe6 $2 Rxg2+ 36. Kf1 Rg1+ 37. Kf2 R8g2+ 38. Ke3 Re1+ 39. Kf4 Rxe6 $19) 35... Rxg2+ 36. Kf1 Rg1+ 37. Ke2 R8g2+ 38. Kd1 Rxe1+ 39. Kxe1 Rxc2 $17) 34... Rgg8 {[%emt 0:00:31]} 35. Kf2 {[%emt 0:02:01]} h5 {[%emt 0:00:26]} 36. h4 {[%emt 0:00:37]} b6 {[%emt 0:00:33]} 37. Reb1 {[%emt 0:00:47]} a6 {[%emt 0:01:36]} 38. R5b2 {[%emt 0:00:56]} (38. Rxb6 $5 Nxb6 39. Rxb6 $14) 38... b5 {[%emt 0:00:16] The position is equal.} 39. Re1 {[%emt 0:00:13]} Kb7 {[%emt 0:00:26]} 40. Rbb1 {[%emt 0:00:20]} Kc6 {[%emt 0:00:57]} 41. Bf4 {[%emt 0:04:48] Weighted Error Value: White=0.23 (precise) /Black=0.28 (precise)} 1/2-1/2

[Event "34th GER-ch Seniors-50 2022"]
[Site "Magdeburg"]
[Date "2022.08.15"]
[Round "4.3"]
[White "Raitza, Olaf"]
[Black "Pitschka, Claus"]
[Result "0-1"]
[ECO "B07"]
[WhiteElo "2289"]
[BlackElo "2188"]
[Annotator "TA"]
[PlyCount "139"]
[EventDate "2022.08.12"]
[EventType "swiss"]
[EventCountry "GER"]
[SourceTitle "playchess.com"]
[Source "ChessBase"]
[SourceQuality "1"]
[TimeControl "40/5400+30:1800+30"]

{[%evp 13,139,33,41,28,69,35,26,30,22,18,46,29,53,46,45,23,50,56,36,50,100,70,54,0,-6,-20,-14,-19,-13,-16,-16,-12,0,0,0,-18,-7,-43,-47,-90,-90,-90,-82,-103,-91,-84,-19,-18,-19,-43,-34,-34,-34,-197,-202,-205,-191,-275,-171,-170,-149,-223,-223,-468,-268,-255,-190,-343,-335,-327,-308,-294,-320,-292,-195,-309,-348,-333,-288,-333,-230,-330,-311,-260,-240,-313,-240,-240,-240,-232,-222,-240,-240,-240,-229,-237,-215,-215,-206,-215,-208,-205,-183,-183,-150,-150,-150,-206,-213,-215,-183,-183,-145,-145,-145,-245,-229,-233,-218,-29978,-29980,-29980,-29981,-29981,-29982,-29982,-29976,-29973]} 1. e4 {[%emt 0:00:02]} d6 {[%emt 0:00:34]} 2. d4 {[%emt 0:00:11]} Nf6 {[%emt 0:00:06]} 3. Nc3 {[%emt 0:00:20]} e5 {[%emt 0:00:40]} 4. dxe5 {[%emt 0:01:37]} dxe5 {[%emt 0:00:10]} 5. Qxd8+ {[%emt 0:00:50]} Kxd8 {[%emt 0:00:08]} 6. Bc4 {[%emt 0:03:15]} Ke8 $1 {[%emt 0:01:17][%mdl 4] is recently more successful than 6...Be6.} 7. Nf3 {[%emt 0:08:23]} Bd6 {[%emt 0:11:23]} 8. h3 {[%emt 0:02:39] B07: Pirc Defence: Miscellaneous Systems.} c6 {[%emt 0:04:35]} 9. a4 {[%emt 0:07:19]} Ke7 {[%emt 0:07:24]} 10. Be3 {[%emt 0:01:50] [#] White has an edge.} Be6 $146 {[%emt 0:01:59]} ({Predecessor:} 10... Nbd7 11. a5 Bb4 12. Nd2 Bc5 13. Ke2 Bxe3 14. Kxe3 Nc5 15. Nb3 Nxb3 16. cxb3 Ne8 {½-½ (52) Lizak,P (2457)-Jovanovic,Z (2503) Chess.com INT 2020}) 11. Bxe6 {[%emt 0:04:14]} Kxe6 {[%emt 0:00:06]} 12. O-O-O {[%emt 0:05:06]} h6 {[%emt 0:08:17] Against Ng5+} 13. Nh4 {[%emt 0:06:24]} g6 {[%emt 0:06:03] Prevents Nf5.} 14. g3 {[%emt 0:00:06]} Bb4 {[%emt 0:05:04]} 15. f4 $1 {[%emt 0:03:53]} Bxc3 {[%emt 0:12:44]} 16. f5+ {[%emt 0:00:03]} Ke7 {[%emt 0:00:11]} (16... gxf5 $14 17. exf5+ Ke7 18. Bc5+ Ke8 19. bxc3 Nbd7) 17. bxc3 {[%emt 0:00:16]} g5 {[%emt 0:02:57]} 18. Nf3 {[%emt 0:07:10]} (18. Bc5+ $1 $14 Ke8 19. Nf3) 18... Nbd7 $36 {[%emt 0:09:46][%mdl 2048] Black has the initiative.} 19. Rhe1 {[%emt 0:07:58]} g4 {[%emt 0:09:13]} ({Much less strong is} 19... Nxe4 20. Nxe5 $1 Nxe5 21. Bd4 $16) 20. hxg4 {[%emt 0:02:38]} Nxg4 {[%emt 0:00:07]} 21. Bg1 {[%emt 0:10:15]} Rhd8 {[%emt 0:01:12]} 22. Rd3 {[%emt 0:03:14]} Nb6 {[%emt 0:02:47]} 23. Bc5+ {[%emt 0:02:40]} Ke8 {[%emt 0:00:23]} 24. Rxd8+ {[%emt 0:04:12]} (24. Rh1 {is interesting.} Nxa4 25. Bg1 Ke7 26. Rh4) 24... Rxd8 {[%emt 0:00:26]} 25. a5 {[%emt 0:00:07]} (25. Bxb6 $5 axb6 26. Rh1 $15) 25... Nc4 {[%emt 0:03:34]} 26. Rh1 {[%emt 0:02:58] [#]} b6 $1 {[%emt 0:03:07]} 27. Bg1 {[%emt 0:03:05]} Nxa5 {[%emt 0:04:55] Black is more active.} 28. Rh4 {[%emt 0:00:03]} h5 {[%emt 0:00:13]} 29. Rxh5 {[%emt 0:00:19] [#]} Nc4 {[%emt 0:00:11]} ({Black should try} 29... Ke7 $1 $17) 30. Rh4 $1 {[%emt 0:02:26]} Nf6 {[%emt 0:00:33]} 31. g4 {[%emt 0:03:32] Strongly threatening g5.} Nxe4 {[%emt 0:00:38]} 32. g5 {[%emt 0:00:01]} Ned6 {[%emt 0:00:33] Threatens to win with ...e4. Pair of Knights!} 33. g6 $2 {[%emt 0:00:54] Loses the game.} (33. Bh2 $1 $15) 33... fxg6 $19 {[%emt 0:00:22]} 34. fxg6 {[%emt 0:01:07][%cal Bf5g6,Bg6g7][%mdl 32] Black must now prevent Rh8+.} Ke7 {[%emt 0:00:25]} 35. Rg4 {[%emt 0:04:17]} (35. Bh2 $142) 35... Rf8 {[%emt 0:01:43]} 36. g7 {[%emt 0:00:54]} Rg8 {[%emt 0:00:06]} (36... Rxf3 37. Kd1 Rf8 38. gxf8=R Kxf8 39. Rg6 $17) 37. Bh2 {[%emt 0:00:36]} (37. Rg6 $17) 37... Kf6 {[%emt 0:01:03]} 38. Nd2 $2 {[%emt 0:01:26]} (38. Rg1 {was necessary.}) 38... b5 {[%emt 0:00:47]} ({Wrong is} 38... Rxg7 $2 39. Rxc4 Nxc4 40. Nxc4 $19) (38... Nxd2 $142 39. Kxd2 Nf7) 39. Nf3 {[%emt 0:00:57]} e4 {[%emt 0:01:17]} ({Worse is} 39... Rxg7 40. Rxg7 Kxg7 41. Nxe5 $17) 40. Nd2 {[%emt 0:00:50]} (40. Bxd6 Nxd6 41. Rf4+ Kxg7 42. Nd4) 40... Rxg7 {[%emt 0:00:27]} 41. Rf4+ {[%emt 0:32:21]} Kg5 {[%emt 0:33:34]} 42. Nxe4+ {[%emt 0:00:00]} Nxe4 {[%emt 0:00:00]} 43. Rxe4 {[%emt 0:00:00][%mdl 4096] Endgame KRB-KRN} Kf5 {[%emt 0:00:00]} 44. Re2 {[%emt 0:00:00]} (44. Re1 {keeps fighting.}) 44... a5 {[%emt 0:00:00][%cal Ba7a5,Ba5a4][%mdl 32]} 45. Kb1 {[%emt 0:00:00]} a4 {[%emt 0:00:00]} 46. Ka2 {[%emt 0:00:00]} Rg4 {[%emt 0:00:00]} 47. Bc7 {[%emt 0:00:00]} (47. Bb8 $142) 47... Re4 {[%emt 0:00:00]} 48. Rf2+ {[%emt 0:00:00]} Ke6 {[%emt 0:00:00]} 49. Bd8 {[%emt 0:00:00]} Re1 {[%emt 0:00:00]} 50. Bf6 {[%emt 0:00:00]} Rd1 {[%emt 0:00:00] And now ...Rd2 would win.} 51. Bg5 {[%emt 0:00:00] Against Rd2} Rd5 {[%emt 0:00:00]} 52. Bh6 {[%emt 0:00:00]} Rf5 {[%emt 0:00:00]} 53. Re2+ {[%emt 0:00:00]} Kd5 {[%emt 0:00:00]} 54. Bg7 {[%emt 0:00:00]} Rf3 {[%emt 0:00:00]} 55. Rh2 {[%emt 0:00:00]} Rg3 {[%emt 0:00:00]} 56. Bf6 {[%emt 0:00:00]} Rg6 {[%emt 0:00:00]} 57. Bd4 {[%emt 0:00:00]} Ke4 {[%emt 0:00:00]} 58. Re2+ {[%emt 0:00:00]} Kf3 {[%emt 0:00:00]} 59. Rf2+ {[%emt 0:00:00]} Kg3 {[%emt 0:00:00]} 60. Re2 {[%emt 0:00:00]} (60. Rf8 $17) 60... Rh6 {[%emt 0:00:00]} 61. Ba7 {[%emt 0:00:00]} Rh7 {[%emt 0:00:00]} 62. Bb8+ {[%emt 0:00:00]} Kf3 {[%emt 0:00:00]} 63. Re6 {[%emt 0:00:00]} Rb7 {[%emt 0:00:00]} 64. Bh2 {[%emt 0:00:00]} (64. Bd6 $17 {was worth a try.}) 64... Rg7 {[%emt 0:00:00] aiming for ...Rg2.} 65. Rxc6 {[%emt 0:00:00]} Rg2 {[%emt 0:00:00][%csl LRc2,LRh2]} 66. Rxc4 $2 {[%emt 0:01:38]} (66. Rh6 $19) 66... bxc4 {[%emt 0:00:00] Black mates.} 67. Be5 {[%emt 0:00:03]} Ke4 {[%emt 0:00:00]} 68. Bf6 {[%emt 0:00:49]} Rxc2+ {[%emt 0:00:00]} 69. Ka3 {[%emt 0:00:02]} Kd5 {[%emt 0:00:00]} 70. Kxa4 {[%emt 0:00:05] Weighted Error Value: White=0.27 (precise) /Black=0.22 (precise)} 0-1

[Event "34th GER-ch Seniors-50 2022"]
[Site "Magdeburg"]
[Date "2022.08.15"]
[Round "4.4"]
[White "Reddmann, Hauke"]
[Black "De Roda Husman, Juan"]
[Result "1/2-1/2"]
[ECO "B06"]
[WhiteElo "2181"]
[BlackElo "2266"]
[Annotator "TA"]
[PlyCount "60"]
[EventDate "2022.08.12"]
[EventType "swiss"]
[EventCountry "GER"]
[SourceTitle "playchess.com"]
[Source "ChessBase"]
[SourceQuality "1"]
[TimeControl "40/5400+30:1800+30"]

{[%evp 10,60,57,47,76,67,68,49,73,62,79,37,69,34,57,0,0,-12,0,0,38,-73,-35,-65,-72,-73,-81,-112,-88,-145,-143,-163,-121,-104,-94,-364,-124,-272,-252,-258,-264,-250,-245,-434,-440,-462,-106,-94,0,-409,0,-77,0]} 1. d4 {[%emt 0:00:02]} d6 {[%emt 0:00:09]} 2. e4 {[%emt 0:00:56]} g6 {[%emt 0:00:17]} 3. Be3 {[%emt 0:01:58]} Bg7 {[%emt 0:00:52]} 4. Nc3 {[%emt 0:00:06]} a6 {[%emt 0:00:58]} 5. Qd2 {[%emt 0:00:44]} Nd7 {[%emt 0:01:39]} 6. f3 {[%emt 0:01:51]} h6 {[%emt 0:01:12] B06: Modern Defence.} 7. a4 {[%emt 0:00:28]} b6 {[%emt 0:01:46]} 8. Bc4 {[%emt 0:00:20]} e6 {[%emt 0:02:41] White is slightly better.} 9. Nge2 {[%emt 0:00:18]} Ne7 {[%emt 0:01:36]} 10. h4 {[%emt 0:00:46][%cal Bh2h4,Bh4h5][%mdl 32] White is more active.} Bb7 {[%emt 0:01:47] [#]} 11. h5 $146 {[%emt 0:00:56]} (11. Nf4 $5 {[%cal Rc4e6]}) ({Predecessor:} 11. Nf4 e5 12. Nfe2 c6 13. Ba2 b5 14. h5 g5 15. dxe5 dxe5 16. O-O-O Bc8 17. Ng3 {1-0 (33) Mesropov,K (2422)-Mozharov,M (2558) Moscow 2019}) 11... g5 {[%emt 0:03:13]} 12. d5 {[%emt 0:01:04]} (12. f4 $14) 12... exd5 $11 {[%emt 0:15:34]} 13. exd5 {[%emt 0:00:10]} Nf5 {[%emt 0:02:01]} 14. Bf2 {[%emt 0:00:07]} Qf6 {[%emt 0:03:31]} 15. Ra2 {[%emt 0:07:15]} (15. Bd3 $14 {keeps the upper hand.}) 15... Ne5 {[%emt 0:08:39]} (15... O-O {feels hotter.} 16. Bd3 Rae8 17. Kd1 Nc5) 16. Bb3 {[%emt 0:00:45]} O-O {[%emt 0:06:55]} 17. O-O {[%emt 0:04:45]} Rae8 {[%emt 0:06:41]} 18. Ne4 {[%emt 0:01:58]} Qe7 {[%emt 0:02:30]} 19. N2c3 {[%emt 0:01:38]} (19. Rd1 $142) 19... Bc8 {[%emt 0:02:08]} 20. Raa1 {[%emt 0:00:26]} Kh8 {[%emt 0:05:06]} 21. Rae1 {[%emt 0:00:54]} Qd8 {[%emt 0:00:34]} 22. Kh1 $2 {[%emt 0:06:57][%mdl 8192]} (22. a5 $17) 22... Rg8 $2 {[%emt 0:06:26]} (22... g4 $1 $19 {[%cal Rg4f3]} 23. Kg1 gxf3) 23. Qd1 {[%emt 0:06:36]} (23. Kg1 $17) 23... g4 $1 $19 {[%emt 0:04:04]} 24. fxg4 {[%emt 0:02:37] [#]} Nxg4 {[%emt 0:01:51][%mdl 512]} 25. Qxg4 {[%emt 0:01:33] aiming for Qh3.} Bxc3 {[%emt 0:00:40]} 26. Qf3 {[%emt 0:02:51]} (26. Qxg8+ Rxg8 27. bxc3) 26... Be5 $1 {[%emt 0:01:33] Strongly threatening ...Rg7.} (26... Bxe1 27. Rxe1 Re5 28. c3 $17) 27. c3 {[%emt 0:06:26] [#]} Nh4 $2 {[%emt 0:06:03]} (27... Rg7 $1 $19 {has better winning chances.} 28. Bd1 Reg8) 28. Qe3 $17 {[%emt 0:01:14][%cal Re3h6]} Nf5 {[%emt 0:00:10][%mdl 8192]} (28... Kh7 $17 29. g3 f5 30. gxh4 Rg4) 29. Qf3 $19 {[%emt 0:01:12] [#]} Nh4 $2 {[%emt 0:01:02]} (29... Rg7 $1 $19 {and Black stays clearly on top.} 30. Bd1 Reg8) 30. Qe3 $17 {[%emt 0:00:04][%cal Re3h6]} Nf5 {[%emt 0:13:52] Weighted Error Value: White=0.41/Black=0.70} (30... Kh7 $17 31. g3 f5) 1/2-1/2